bitfinex/quotes_BTCUSD_20240818
["timestamp","ask_amount","ask_price","bid_price","bid_amount"]
[1723981914098,0.00825,60038.0,60037.0,0.02]
[1723981914461,0.0002,60039.0,60037.0,0.02822099]
[1723981914462,0.11659,60039.0,60037.0,0.02822099]
[1723981914669,0.582962,60038.0,60037.0,0.02822099]
[1723981914836,0.666162,60038.0,60037.0,0.02822099]
[1723981915039,0.899347,60038.0,60037.0,0.02]
[1723981915239,0.999347,60038.0,60037.0,0.02]
[1723981915443,0.999347,60038.0,60037.0,0.011]
[1723981915847,0.999347,60038.0,60037.0,0.019]
[1723981917028,0.999347,60038.0,60037.0,0.011]
[1723981917369,0.1447,60027.0,60023.0,0.116621]
[1723981917596,0.1447,60027.0,60024.0,0.116619]
[1723981917747,0.1447,60027.0,60021.0,0.51177509]
[1723981917748,0.1447,60027.0,60025.0,0.116617]
[1723981917949,0.1447,60027.0,60007.0,0.104]
[1723981917950,0.1447,60027.0,60013.0,0.233279]
[1723981918157,0.116618,60025.0,60013.0,0.233279]
[1723981918357,0.261315,60027.0,60017.0,0.233265]
[1723981918550,0.261315,60027.0,60013.0,0.233279]
[1723981918551,0.261314,60027.0,60020.0,0.233252]
[1723981918727,0.261314,60027.0,60024.0,0.011]
[1723981918728,0.1447,60027.0,60024.0,0.011]
[1723981918938,0.1447,60027.0,60025.0,0.009]
[1723981919169,0.261314,60027.0,60025.0,0.009]
[1723981919390,0.233211,60032.0,60025.0,0.009]
[1723981919391,0.1447,60032.0,60025.0,0.009]
[1723981919587,0.1447,60032.0,60030.0,0.116608]
[1723981919588,0.1,60031.0,60030.0,0.116608]
[1723981919798,0.1447,60038.0,60034.0,0.1166]
[1723981920005,0.261292,60038.0,60034.0,0.1166]
[1723981920207,0.1447,60038.0,60035.0,0.116597]
[1723981920406,0.1447,60038.0,60025.0,0.009]
[1723981920407,0.1447,60038.0,60037.0,0.116594]
[1723981920784,0.145524,60038.0,60037.0,0.116594]
[1723981920990,0.147524,60038.0,60035.0,0.116597]
[1723981921186,0.145524,60038.0,60035.0,0.116597]
[1723981921438,0.147524,60038.0,60035.0,0.116597]
[1723981921762,0.149524,60038.0,60037.0,0.116594]
[1723981921908,0.145524,60038.0,60037.0,0.116594]
[1723981922911,0.145524,60038.0,60035.0,0.011]
[1723981923508,0.000824,60038.0,60037.0,0.582972]
[1723981923721,0.000824,60038.0,60037.0,0.605972]
[1723981923930,0.000824,60038.0,60037.0,0.611972]
[1723981924141,1e-08,60040.0,60039.0,0.582952]
[1723981924345,1e-08,60040.0,60039.0,0.605952]
[1723981925810,0.08320001,60040.0,60037.0,0.124593]
[1723981926012,0.0615,60039.0,60038.0,0.116592]
[1723981926421,1e-08,60040.0,60039.0,0.11659]
[1723981926838,1e-08,60040.0,60039.0,0.12359]
[1723981927041,1e-08,60040.0,60039.0,0.12259]
[1723981927880,1e-08,60040.0,60039.0,0.13024369]
[1723981928096,1e-08,60040.0,60039.0,0.13724369]
[1723981928308,1e-08,60040.0,60039.0,0.37042469]
[1723981928515,1e-08,60040.0,60039.0,0.62660569]
[1723981929600,0.216557,60057.0,60052.0,0.116564]
[1723981929828,0.0615,60065.0,60058.0,0.34966]
[1723981930039,0.0615,60065.0,60058.0,0.116553]
[1723981930245,0.116543,60064.0,60058.0,0.35723712]
[1723981930671,0.116543,60064.0,60058.0,0.12413012]
[1723981931115,0.294582,60065.0,60058.0,0.12513012]
[1723981931116,0.01145,60059.0,60058.0,0.12513012]
[1723981931315,0.01145,60059.0,60058.0,0.35823712]
[1723981931516,0.00845,60059.0,60058.0,0.35723712]
[1723981931729,0.00845,60059.0,60058.0,1.13870566]
[1723981931941,0.00845,60059.0,60058.0,1.31008238]
[1723981932152,0.00845,60059.0,60058.0,1.43005322]
[1723981932387,0.00845,60059.0,60058.0,1.45485944]
[1723981932596,0.00845,60059.0,60058.0,1.40512488]
[1723981933017,0.00845,60059.0,60058.0,1.39612488]
[1723981933438,0.00845,60059.0,60058.0,1.01083969]
[1723981933681,0.00845,60059.0,60058.0,1.00983969]
[1723981933916,0.00845,60059.0,60058.0,1.00083969]
[1723981934138,0.00845,60059.0,60058.0,0.78488515]
[1723981934376,0.0824,60064.0,60058.0,0.01957712]
[1723981934585,0.0824,60064.0,60059.0,0.349654]
[1723981934794,0.116546,60062.0,60058.0,0.01757712]
[1723981935098,0.0824,60064.0,60060.0,0.00751414]
[1723981935099,0.181348,60061.0,60060.0,0.00751414]
[1723981935373,0.181348,60061.0,60059.0,0.00751555]
[1723981935645,0.34965,60060.0,60059.0,0.00751555]
[1723981935909,0.11655,60060.0,60059.0,0.01551555]
[1723981936179,0.11655,60060.0,60058.0,0.014]
[1723981936464,0.11655,60060.0,60055.0,0.116559]
[1723981936465,0.11655,60060.0,60059.0,0.007523]
[1723981936729,0.181348,60061.0,60058.0,0.007]
[1723981937264,0.11655,60060.0,60059.0,0.007523]
[1723981937558,0.11655,60060.0,60058.0,0.003]
[1723981937793,0.181348,60061.0,60059.0,0.00753084]
[1723981938260,0.11655,60060.0,60059.0,0.00753084]
[1723981938792,0.11655,60060.0,60059.0,0.01153084]
[1723981939037,0.11655,60060.0,60059.0,0.00753084]
[1723981939268,0.11655,60060.0,60059.0,0.00953084]
[1723981939756,0.43205,60060.0,60059.0,0.00953084]
[1723981939998,0.66515,60060.0,60059.0,0.00953084]
[1723981940258,0.66515,60060.0,60059.0,0.004]
[1723981940516,0.66515,60060.0,60059.0,0.002]
[1723981940751,0.66515,60060.0,60052.0,0.116564]
[1723981940752,0.116556,60057.0,60052.0,0.116564]
[1723981941233,0.116558,60056.0,60051.0,0.116567]
[1723981941478,0.116561,60054.0,60053.0,0.00749869]
[1723981941741,0.116561,60054.0,60049.0,0.116571]
[1723981942031,0.414492,60053.0,60052.0,0.007]
[1723981942270,0.116578,60046.0,60039.0,0.0764]
[1723981942516,0.116578,60046.0,60042.0,0.116584]
[1723981943015,0.116575,60047.0,60043.0,0.1240948]
[1723981943495,0.116575,60047.0,60043.0,0.0075128]
[1723981943733,0.116575,60047.0,60043.0,0.1240958]
[1723981943992,0.1472,60046.0,60043.0,0.0075128]
[1723981944226,0.1472,60046.0,60043.0,0.1240948]
[1723981944466,0.1472,60046.0,60043.0,0.116582]
[1723981944705,0.263777,60046.0,60044.0,0.00751139]
[1723981944944,0.116579,60045.0,60044.0,0.00751139]
[1723981945469,0.263777,60046.0,60044.0,0.00751139]
[1723981945970,0.233119,60055.0,60047.0,0.116574]
[1723981945971,0.0648,60052.0,60047.0,0.116574]
[1723981946234,0.0824,60051.0,60044.0,0.00751139]
[1723981946474,0.116581,60044.0,60043.0,0.007]
[1723981946714,0.116581,60044.0,60043.0,0.0276228]
[1723981946977,0.116579,60045.0,60043.0,0.0296228]
[1723981947231,0.116579,60045.0,60044.0,0.0206228]
[1723981947743,0.263779,60045.0,60044.0,0.003]
[1723981948005,0.263779,60045.0,60042.0,0.0009064]
[1723981948263,0.263779,60045.0,60043.0,0.03062315]
[1723981948501,0.263779,60045.0,60042.0,0.0009064]
[1723981948502,0.1472,60045.0,60042.0,0.0009064]
[1723981948737,0.1472,60045.0,60044.0,0.004]
[1723981949199,0.263779,60045.0,60044.0,0.004]
[1723981949454,0.496937,60045.0,60044.0,0.004]
[1723981949733,0.730095,60045.0,60044.0,0.004]
[1723981950246,0.730095,60045.0,60035.0,0.588398]
[1723981950247,0.116592,60039.0,60035.0,0.588398]
[1723981950478,0.233177,60041.0,60036.0,0.02062421]
[1723981950709,0.116586,60042.0,60037.0,0.13721821]
[1723981950964,0.116587,60041.0,60038.0,0.02062421]
[1723981951223,0.116587,60041.0,60039.0,0.02062421]
[1723981951454,0.116587,60041.0,60037.0,0.116594]
[1723981951696,0.116587,60041.0,60038.0,0.02062423]
[1723981951960,0.116587,60041.0,60037.0,0.116594]
[1723981952226,0.116587,60041.0,60038.0,0.02062423]
[1723981952227,0.116588,60040.0,60038.0,0.02062423]
[1723981952468,0.0824,60039.0,60036.0,0.116595]
[1723981952711,0.0824,60039.0,60037.0,0.02062424]
[1723981952966,0.0824,60039.0,60038.0,0.02062424]
[1723981953197,0.1482,60039.0,60038.0,0.02062424]
[1723981953962,0.1482,60039.0,60038.0,0.009]
[1723981954634,0.1482,60039.0,60038.0,0.02]
[1723981955039,0.1482,60039.0,60038.0,0.029]
[1723981955863,0.0658,60044.0,60038.0,0.029]
[1723981956089,0.0658,60048.0,60045.0,0.116578]
[1723981956293,0.0658,60048.0,60046.0,0.116576]
[1723981956474,0.0658,60048.0,60045.0,0.116578]
[1723981956852,0.116576,60047.0,60041.0,0.233173]
[1723981957058,0.116576,60047.0,60042.0,0.116583]
[1723981957233,0.116576,60047.0,60043.0,0.116583]
[1723981957604,0.0658,60048.0,60045.0,0.116578]
[1723981958010,0.0658,60048.0,60046.0,0.00759613]
[1723981958398,0.0388,60048.0,60046.0,0.00759613]
[1723981958599,0.116575,60047.0,60046.0,0.00759613]
[1723981958857,0.0388,60048.0,60044.0,0.116581]
[1723981958858,0.155373,60048.0,60044.0,0.116581]
[1723981959064,0.155373,60048.0,60046.0,0.00759613]
[1723981959271,0.0388,60048.0,60046.0,0.00759613]
[1723981959473,0.0388,60048.0,60042.0,0.466337]
[1723981959474,0.0388,60048.0,60047.0,0.00759472]
[1723981959680,0.0388,60048.0,60045.0,0.116577]
[1723981959889,0.0388,60048.0,60047.0,0.00759472]
[1723981960093,0.0388,60048.0,60043.0,0.116581]
[1723981960094,0.155373,60048.0,60043.0,0.116581]
[1723981960304,0.155373,60048.0,60047.0,0.00759472]
[1723981960510,0.155373,60048.0,60045.0,0.001]
[1723981960720,0.155373,60048.0,60047.0,0.00759472]
[1723981960926,0.155373,60048.0,60042.0,0.233168]
[1723981960927,0.116577,60046.0,60042.0,0.116584]
[1723981961129,0.155373,60048.0,60047.0,0.00759472]
[1723981961334,0.621665,60048.0,60047.0,0.001]
[1723981961544,0.271946,60048.0,60039.0,0.11659]
[1723981961754,0.0762,60042.0,60039.0,0.11659]
[1723981961968,0.0762,60042.0,60040.0,0.12419259]
[1723981962587,0.0762,60042.0,60040.0,0.00760459]
[1723981962794,0.116586,60041.0,60040.0,0.00760459]
[1723981963004,0.0627,60041.0,60035.0,0.4727064]
[1723981963225,0.0627,60041.0,60040.0,0.00759816]
[1723981963429,0.0627,60041.0,60035.0,0.4727064]
[1723981963430,0.0627,60041.0,60039.0,0.116589]
[1723981963635,0.0627,60041.0,60040.0,0.00759816]
[1723981964273,0.0627,60041.0,60040.0,0.01459816]
[1723981964913,0.0762,60042.0,60040.0,0.01459816]
[1723981965121,0.116577,60046.0,60042.0,0.116584]
[1723981965521,0.179273,60048.0,60044.0,0.11658]
[1723981965724,0.179273,60048.0,60043.0,0.00759481]
[1723981965725,0.0627,60048.0,60043.0,0.00759481]
[1723981966020,0.116576,60047.0,60042.0,0.116584]
[1723981966225,0.116576,60047.0,60044.0,0.0075934]
[1723981966413,0.116576,60047.0,60043.0,0.12417681]
[1723981966591,0.179274,60048.0,60045.0,0.00759199]
[1723981966797,0.179274,60048.0,60044.0,0.1241744]
[1723981966997,0.179274,60048.0,60046.0,0.00759058]
[1723981967210,0.1,60053.0,60046.0,0.0636]
[1723981967369,0.1389,60056.0,60050.0,0.116569]
[1723981967569,0.1389,60056.0,60047.0,0.00758917]
[1723981967570,0.11656,60055.0,60051.0,0.116567]
[1723981967786,0.1389,60056.0,60051.0,0.00758352]
[1723981967787,0.116561,60054.0,60051.0,0.00758352]
[1723981968121,0.116561,60054.0,60049.0,0.116569]
[1723981968279,0.116561,60054.0,60052.0,0.0075759]
[1723981968479,0.1389,60056.0,60052.0,0.0075759]
[1723981968480,0.1389,60056.0,60052.0,0.116564]
[1723981968728,0.116559,60055.0,60053.0,0.00757449]
[1723981969164,0.116559,60055.0,60049.0,0.34971]
[1723981969308,0.116562,60054.0,60049.0,0.34971]
[1723981969509,0.255458,60056.0,60051.0,0.116565]
[1723981969718,0.117559,60055.0,60051.0,0.117565]
[1723981969944,0.117559,60055.0,60051.0,0.118565]
[1723981970143,0.116559,60055.0,60051.0,0.117565]
[1723981970342,0.116559,60055.0,60049.0,0.233141]
[1723981970578,0.117559,60055.0,60051.0,0.116566]
[1723981970771,0.116559,60055.0,60051.0,0.117566]
[1723981971076,0.116562,60054.0,60051.0,0.001]
[1723981971285,0.116562,60054.0,60051.0,0.002]
[1723981971286,0.116565,60052.0,60051.0,0.002]
[1723981971413,0.265565,60052.0,60051.0,0.002]
[1723981971615,0.182265,60052.0,60051.0,0.002]
[1723981972041,0.648527,60052.0,60051.0,0.002]
[1723981972437,0.415396,60052.0,60051.0,0.002]
[1723981972808,0.11657,60050.0,60045.0,0.116578]
[1723981972929,0.298831,60052.0,60045.0,0.116578]
[1723981973135,0.648527,60052.0,60051.0,0.001]
[1723981973393,0.116574,60048.0,60046.0,0.00758437]
[1723981973597,0.233143,60049.0,60043.0,0.116582]
[1723981973598,0.116575,60047.0,60043.0,0.116582]
[1723981973769,0.116575,60047.0,60044.0,0.02062277]
[1723981973980,0.116575,60047.0,60043.0,0.116582]
[1723981974786,0.116575,60047.0,60046.0,0.006]
[1723981975222,0.233143,60049.0,60046.0,0.006]
[1723981975420,0.116573,60048.0,60046.0,0.006]
[1723981975909,0.116573,60048.0,60043.0,0.116582]
[1723981976108,0.116575,60047.0,60044.0,0.02062287]
[1723981976328,0.116575,60047.0,60043.0,0.122582]
[1723981976515,0.0833,60046.0,60043.0,0.131582]
[1723981976703,0.0833,60046.0,60043.0,0.006]
[1723981976904,0.199877,60046.0,60042.0,0.4718]
[1723981977117,0.199877,60046.0,60043.0,0.02362298]
[1723981977308,0.199877,60046.0,60043.0,0.005]
[1723981977507,0.199877,60046.0,60043.0,0.002]
[1723981977686,0.199877,60046.0,60042.0,0.116584]
[1723981977899,0.199868,60051.0,60046.0,0.116576]
[1723981978222,0.11657,60050.0,60046.0,0.116576]
[1723981981560,0.116562,60054.0,60050.0,0.116569]
[1723981982528,0.233124,60054.0,60048.0,0.116573]
[1723981982727,0.116564,60053.0,60049.0,0.116571]
[1723981982975,0.116564,60053.0,60049.0,0.11657]
[1723981983178,0.000825,60055.0,60049.0,0.11657]
[1723981983179,0.116565,60052.0,60049.0,0.11657]
[1723981983375,0.116565,60052.0,60046.0,0.233154]
[1723981983587,0.116565,60052.0,60048.0,0.116573]
[1723981983588,0.000825,60050.0,60048.0,0.116573]
[1723981984231,0.000825,60050.0,60045.0,0.233156]
[1723981984430,0.0833,60048.0,60047.0,0.116573]
[1723981985558,0.0833,60048.0,60045.0,0.116578]
[1723981986159,0.0833,60048.0,60045.0,0.16653644]
[1723981986360,0.000825,60050.0,60045.0,0.04995844]
[1723981986561,0.000825,60050.0,60048.0,0.116571]
[1723981986767,0.000825,60050.0,60049.0,0.116571]
[1723981987645,0.000825,60050.0,60049.0,0.12414816]
[1723981988262,0.000825,60050.0,60049.0,0.12373052]
[1723981989513,0.000825,60050.0,60049.0,0.12773052]
[1723981989714,0.000825,60050.0,60049.0,0.13073052]
[1723981991085,0.077725,60050.0,60049.0,0.01457716]
[1723981991243,0.140925,60050.0,60049.0,0.01457716]
[1723981991445,0.257494,60050.0,60049.0,0.01457716]
[1723981991625,0.257494,60050.0,60049.0,0.007]
[1723981991824,0.490633,60050.0,60049.0,0.01458004]
[1723981992231,0.490633,60050.0,60049.0,0.01158004]
[1723981992232,0.723772,60050.0,60049.0,0.01158004]
[1723981992434,0.723772,60050.0,60049.0,0.004]
[1723981992641,0.723772,60050.0,60049.0,0.006]
[1723981993066,0.723772,60050.0,60049.0,0.004]
[1723981993264,0.116579,60045.0,60044.0,0.04999115]
[1723981993473,0.116579,60045.0,60044.0,0.02062292]
[1723981993668,0.116579,60045.0,60044.0,0.0706178]
[1723981993847,0.116579,60045.0,60044.0,0.02062292]
[1723981994041,0.116579,60045.0,60044.0,0.0706178]
[1723981994366,0.116579,60045.0,60042.0,0.07589983]
[1723981994367,0.116579,60045.0,60043.0,0.04999488]
[1723981994562,0.116579,60045.0,60044.0,0.02962321]
[1723981994950,0.116579,60045.0,60044.0,0.03662321]
[1723981995154,0.349737,60045.0,60044.0,0.03662321]
[1723981995357,0.116579,60045.0,60044.0,0.03662321]
[1723981996201,0.116579,60045.0,60044.0,0.08661809]
[1723981996608,0.349737,60045.0,60044.0,0.08661809]
[1723981996862,0.349737,60045.0,60044.0,0.03662321]
[1723981997064,0.116579,60045.0,60044.0,0.03753071]
[1723981998188,0.116579,60045.0,60044.0,0.08752559]
[1723981998832,0.116579,60045.0,60044.0,0.03753071]
[1723981999611,0.349737,60045.0,60044.0,0.03753071]
[1723981999850,0.349737,60045.0,60044.0,0.08752559]
[1723982000254,0.349737,60045.0,60044.0,0.03753071]
[1723982000683,0.349737,60045.0,60044.0,0.0169075]
[1723982000816,0.349737,60045.0,60044.0,0.03753077]
[1723982001228,0.349737,60045.0,60044.0,0.03586577]
[1723982001844,0.722995,60045.0,60044.0,0.03586577]
[1723982002246,0.722995,60045.0,60044.0,0.0152425]
[1723982002667,0.349737,60045.0,60044.0,0.0152425]
[1723982002864,0.349737,60045.0,60044.0,0.02284183]
[1723982005984,0.659795,60045.0,60044.0,0.0152425]
[1723982006468,0.722995,60045.0,60044.0,0.0152425]
[1723982014357,0.956153,60045.0,60044.0,0.0152425]
[1723982014605,0.722995,60045.0,60044.0,0.0152425]
[1723982014777,0.722995,60045.0,60044.0,0.0082425]
[1723982014778,0.956153,60045.0,60044.0,0.0082425]
[1723982014928,1.056153,60045.0,60044.0,0.0082425]
[1723982015152,0.822995,60045.0,60044.0,0.0082425]
[1723982015468,0.822995,60045.0,60044.0,0.0019075]
[1723982016850,0.822995,60045.0,60044.0,0.0009075]
[1723982017272,0.826995,60045.0,60044.0,0.0019075]
[1723982017472,0.823995,60045.0,60044.0,0.0019075]
[1723982017884,0.826995,60045.0,60044.0,0.0029075]
[1723982018213,0.686895,60045.0,60044.0,0.0029075]
[1723982019949,0.682895,60045.0,60044.0,0.0009075]
[1723982020353,0.684895,60045.0,60044.0,0.0009075]
[1723982020807,0.687895,60045.0,60044.0,0.0019075]
[1723982021218,0.68772,60045.0,60044.0,0.0009075]
[1723982021610,0.68872,60045.0,60044.0,0.0009075]
[1723982028183,0.921878,60045.0,60044.0,0.0009075]
[1723982028407,0.68872,60045.0,60044.0,0.0009075]
[1723982028544,0.77172,60045.0,60044.0,0.0009075]
[1723982029356,1.004878,60045.0,60044.0,0.0009075]
[1723982029569,0.9363903,60045.0,60044.0,0.0009075]
[1723982029785,0.83282,60045.0,60044.0,0.0009075]
[1723982030016,1.065978,60045.0,60044.0,0.0009075]
[1723982030431,0.83282,60045.0,60044.0,0.0009075]
[1723982031428,1.065978,60045.0,60044.0,0.0009075]
[1723982031864,0.84278764,60045.0,60044.0,0.0009075]
[1723982032227,1.07594564,60045.0,60044.0,0.0009075]
[1723982033869,0.84278764,60045.0,60044.0,0.0009075]
[1723982034430,1.07594564,60045.0,60044.0,0.0009075]
[1723982035057,1.1866227,60045.0,60044.0,0.0009075]
[1723982036304,1.4197807,60045.0,60044.0,0.0009075]
[1723982038874,1.1866227,60045.0,60044.0,0.0009075]
[1723982039282,1.4197807,60045.0,60044.0,0.0009075]
[1723982039695,0.349818,60031.0,60030.0,0.04874376]
[1723982039897,0.349818,60031.0,60030.0,0.06937022]
[1723982040697,0.349818,60031.0,60030.0,0.02062646]
[1723982041106,0.816242,60031.0,60030.0,0.025]
[1723982041288,0.960242,60031.0,60030.0,0.025]
[1723982042512,0.72703,60031.0,60030.0,0.025]
[1723982042712,0.72703,60031.0,60030.0,0.013]
[1723982042923,0.72703,60031.0,60030.0,0.023]
[1723982043126,0.72703,60031.0,60030.0,0.01]
[1723982043478,0.116618,60025.0,60021.0,0.116625]
[1723982043883,0.116618,60025.0,60019.0,0.1386]
[1723982043884,0.233225,60028.0,60022.0,0.116623]
[1723982044464,0.116617,60026.0,60022.0,0.116623]
[1723982044671,0.116618,60025.0,60020.0,0.233255]
[1723982044875,0.116618,60025.0,60021.0,0.116625]
[1723982045082,0.233229,60027.0,60021.0,0.014]
[1723982045288,0.144,60031.0,60021.0,0.014]
[1723982045490,0.116621,60024.0,60022.0,0.011]
[1723982046896,0.116621,60024.0,60021.0,0.006]
[1723982047172,0.116622,60023.0,60021.0,0.014]
[1723982047373,0.116622,60023.0,60022.0,0.014]
[1723982047785,0.116622,60023.0,60022.0,0.04073486]
[1723982047990,0.349865,60023.0,60022.0,0.02673486]
[1723982048577,0.116622,60023.0,60022.0,0.02673486]
[1723982048855,0.349865,60023.0,60022.0,0.01273486]
[1723982049209,0.116624,60022.0,60019.0,0.1386]
[1723982049634,0.116624,60022.0,60021.0,0.014]
[1723982049989,0.116624,60022.0,60019.0,0.1386]
[1723982050513,0.116624,60022.0,60019.0,0.1476]
[1723982050717,0.116624,60022.0,60021.0,0.011]
[1723982051114,0.116624,60022.0,60019.0,0.1476]
[1723982051471,0.116624,60022.0,60019.0,0.1586]
[1723982051683,0.116624,60022.0,60019.0,0.1476]
[1723982051921,0.116622,60023.0,60019.0,0.255229]
[1723982052123,0.116622,60023.0,60021.0,0.02]
[1723982052516,0.116622,60023.0,60022.0,0.0787]
[1723982053160,0.116618,60025.0,60022.0,0.0787]
[1723982053585,0.233229,60027.0,60022.0,0.0787]
[1723982053586,0.11662,60024.0,60022.0,0.0787]
[1723982053786,0.11662,60024.0,60022.0,0.0867]
[1723982054220,0.11662,60024.0,60022.0,0.0967]
[1723982054639,0.11662,60024.0,60022.0,0.0867]
[1723982054841,0.11662,60024.0,60022.0,0.0957]
[1723982055047,0.11662,60024.0,60022.0,0.0877]
[1723982055380,0.11662,60024.0,60022.0,0.009]
[1723982055795,0.11662,60024.0,60022.0,0.015]
[1723982056416,0.11662,60024.0,60022.0,0.009]
[1723982056597,0.11662,60024.0,60022.0,0.016]
[1723982058016,0.24324829,60033.0,60022.0,0.016]
[1723982058017,0.116602,60034.0,60030.0,0.116607]
[1723982058234,0.1166,60035.0,60031.0,0.116605]
[1723982058423,0.233189,60037.0,60031.0,0.116605]
[1723982058424,0.116598,60036.0,60031.0,0.116605]
[1723982058632,0.233189,60037.0,60031.0,0.116605]
[1723982058633,0.116598,60035.0,60031.0,0.116605]
[1723982058834,0.116598,60035.0,60030.0,0.116607]
[1723982059039,0.1166,60034.0,60030.0,0.116607]
[1723982059290,0.1186,60034.0,60030.0,0.116607]
[1723982060303,0.002,60034.0,60029.0,0.0627]
[1723982060511,0.002,60034.0,60031.0,0.116605]
[1723982060707,0.005,60034.0,60031.0,0.116605]
[1723982061074,0.005,60034.0,60033.0,0.412507]
[1723982061304,0.005,60034.0,60033.0,0.435507]
[1723982061504,0.233166,60043.0,60033.0,0.435507]
[1723982061505,0.233171,60042.0,60033.0,0.41823027]
[1723982061707,0.116589,60040.0,60035.0,0.233196]
[1723982062087,0.116589,60040.0,60036.0,0.116596]
[1723982062799,0.116589,60040.0,60037.0,0.01278759]
[1723982063175,0.116587,60041.0,60037.0,0.12938159]
[1723982064633,0.116587,60041.0,60037.0,0.13238159]
[1723982065037,0.116587,60041.0,60037.0,0.13538159]
[1723982065411,0.116587,60041.0,60037.0,0.13238159]
[1723982065612,0.116589,60040.0,60037.0,0.01578759]
[1723982065788,0.116589,60040.0,60037.0,0.01778759]
[1723982066203,0.11659,60039.0,60037.0,0.01778759]
[1723982066408,0.11659,60039.0,60037.0,0.01578759]
[1723982066824,0.11659,60039.0,60037.0,0.01278759]
[1723982067055,0.11659,60039.0,60037.0,0.01678759]
[1723982067277,0.11659,60039.0,60037.0,0.004]
[1723982067444,0.11659,60039.0,60038.0,0.01272186]
[1723982068071,0.11659,60039.0,60035.0,0.116598]
[1723982068278,0.116589,60040.0,60038.0,0.01272186]
[1723982068494,0.116589,60040.0,60037.0,0.008]
[1723982068705,0.116589,60040.0,60039.0,0.01271939]
[1723982069159,0.116589,60040.0,60037.0,0.005]
[1723982069571,0.116589,60040.0,60038.0,0.01272186]
[1723982070017,0.116589,60040.0,60038.0,0.005]
[1723982070224,0.116589,60040.0,60039.0,0.01571939]
[1723982071557,0.116589,60040.0,60039.0,0.01271939]
[1723982072598,0.116589,60040.0,60039.0,0.01571939]
[1723982072811,0.116589,60040.0,60039.0,0.003]
[1723982073022,0.116589,60040.0,60039.0,0.01671939]
[1723982073240,0.116589,60040.0,60039.0,0.01271939]
[1723982073448,0.116591,60039.0,60035.0,0.116598]
[1723982073923,0.116589,60040.0,60036.0,0.116596]
[1723982074168,0.116591,60039.0,60034.0,0.349799]
[1723982074691,0.116591,60039.0,60034.0,0.116599]
[1723982074892,0.116591,60039.0,60035.0,0.003]
[1723982075107,0.116591,60039.0,60035.0,0.119598]
[1723982076167,0.116591,60039.0,60035.0,0.116598]
[1723982076933,0.116591,60039.0,60035.0,0.119598]
[1723982077517,0.116591,60039.0,60035.0,0.116598]
[1723982077652,0.116591,60039.0,60035.0,0.121598]
[1723982077854,0.116591,60039.0,60036.0,0.0127268]
[1723982078299,0.116591,60039.0,60035.0,0.125598]
[1723982078621,0.116589,60040.0,60037.0,0.01272433]
[1723982078821,0.11659,60040.0,60036.0,0.12932926]
[1723982079068,0.11659,60039.0,60037.0,0.01273179]
[1723982079706,0.233171,60042.0,60037.0,0.01273179]
[1723982079908,0.233171,60042.0,60037.0,0.01573179]
[1723982080143,0.116589,60040.0,60037.0,0.01573179]
[1723982080683,0.116589,60040.0,60037.0,0.02073179]
[1723982080886,0.116589,60040.0,60037.0,0.01573179]
[1723982081085,0.116589,60040.0,60037.0,0.01273179]
[1723982081386,0.116589,60040.0,60037.0,0.01673179]
[1723982082018,0.116589,60040.0,60037.0,0.01273179]
[1723982082666,0.116591,60039.0,60037.0,0.01273179]
[1723982082871,0.116591,60039.0,60037.0,0.01773179]
[1723982082989,0.116591,60039.0,60037.0,0.005]
[1723982083189,0.116591,60039.0,60038.0,0.01272932]
[1723982083450,0.116591,60039.0,60037.0,0.005]
[1723982083764,0.116591,60039.0,60038.0,0.01272932]
[1723982084185,0.116591,60039.0,60037.0,0.001]
[1723982084388,0.116591,60039.0,60038.0,0.01272932]
[1723982084700,0.116591,60039.0,60038.0,0.005]
[1723982084906,0.116591,60039.0,60038.0,0.01772932]
[1723982085108,0.116591,60039.0,60038.0,0.005]
[1723982085300,0.116591,60039.0,60038.0,0.01772932]
[1723982085507,0.116591,60039.0,60038.0,0.005]
[1723982085712,0.116591,60039.0,60038.0,0.01972932]
[1723982085869,0.116591,60039.0,60038.0,0.002]
[1723982086047,0.116591,60039.0,60038.0,0.01572932]
[1723982086247,0.116591,60039.0,60038.0,0.003]
[1723982086476,0.116591,60039.0,60038.0,0.01572932]
[1723982086694,0.489072,60039.0,60038.0,0.003]
[1723982087040,0.255891,60039.0,60034.0,0.116599]
[1723982087248,0.255891,60039.0,60038.0,0.005]
[1723982087631,0.255891,60039.0,60038.0,0.0177319]
[1723982088046,0.255891,60039.0,60038.0,0.0217319]
[1723982089415,0.722253,60039.0,60038.0,0.0217319]
[1723982089611,0.489072,60039.0,60038.0,0.009]
[1723982091195,0.722253,60039.0,60038.0,0.009]
[1723982091360,0.489072,60039.0,60038.0,0.009]
[1723982091945,0.722253,60039.0,60038.0,0.009]
[1723982092146,0.489072,60039.0,60038.0,0.009]
[1723982092977,0.000825,60040.0,60038.0,0.0918]
[1723982093390,0.000825,60040.0,60039.0,0.01272943]
[1723982095038,0.000825,60040.0,60039.0,0.01572943]
[1723982095252,0.117413,60040.0,60039.0,0.01572943]
[1723982095456,0.48849,60040.0,60039.0,0.01572943]
[1723982095858,0.48849,60040.0,60039.0,0.003]
[1723982096116,0.954844,60040.0,60039.0,0.007]
[1723982097277,0.954844,60040.0,60039.0,0.004]
[1723982097478,0.116606,60031.0,60030.0,0.0009075]
[1723982097693,0.116606,60031.0,60030.0,0.02153515]
[1723982097694,0.177006,60031.0,60030.0,0.02153515]
[1723982097867,0.177006,60031.0,60030.0,0.0009075]
[1723982097868,0.64343,60031.0,60030.0,0.0009075]
[1723982098103,0.64343,60031.0,60030.0,0.01585806]
[1723982098515,0.64343,60031.0,60030.0,0.0009075]